[Event "Titled Tuesday Blitz May 4 2021"]
[White "Amarasinghe, A A C B"]
[Black "Khnykin, Nikolay"]
[WhiteFideId "9901809"]
[BlackFideId "4188853"]
[WhiteElo "1778"]
[BlackElo "2280"]
[Result "1-0"]
[Round "09"]
[TimeControl "180+1"]
[Date "2021.05.04"]
[WhiteClock "0:01:47"]
[BlackClock "0:00:01"]

1. c4 {[%clk 0:03:00]}  e6 {[%clk 0:02:59]} 2. g3 {[%clk 0:02:59]}  d5 {[%clk 0:02:58]} 3. Bg2 {[%clk 0:03:00]}  Nf6 {[%clk 0:02:58]} 4. Nf3 {[%clk 0:03:00]}  Be7 {[%clk 0:02:57]} 5. O-O {[%clk 0:03:01]}  O-O {[%clk 0:02:56]} 6. d4 {[%clk 0:03:02]}  c5 {[%clk 0:02:55]} 7. cxd5 {[%clk 0:03:01]}  exd5 {[%clk 0:02:54]} 8. Nc3 {[%clk 0:03:01]}  Nc6 {[%clk 0:02:53]} 9. Bg5 {[%clk 0:03:00]}  Qb6 {[%clk 0:02:49]} 10. Bxf6 {[%clk 0:02:57]}  Bxf6 {[%clk 0:02:48]} 11. Nxd5 {[%clk 0:02:57]}  Qxb2 {[%clk 0:02:47]} 12. Nxf6+ {[%clk 0:02:57]}  gxf6 {[%clk 0:02:48]} 13. dxc5 {[%clk 0:02:54]}  Bg4 {[%clk 0:02:43]} 14. Qa4 {[%clk 0:02:51]}  Qxe2 {[%clk 0:02:36]} 15. Qxg4+ {[%clk 0:02:50]}  Kh8 {[%clk 0:02:33]} 16. Rfe1 {[%clk 0:02:50]}  Qb5 {[%clk 0:02:27]} 17. Qf5 {[%clk 0:02:49]}  Qb2 {[%clk 0:02:21]} 18. Ne5 {[%clk 0:02:43]}  fxe5 {[%clk 0:02:00]} 19. Bxc6 {[%clk 0:02:34]}  bxc6 {[%clk 0:01:56]} 20. Rab1 {[%clk 0:02:33]}  Qxa2 {[%clk 0:01:13]} 21. Qf6+ {[%clk 0:02:23]}  Kg8 {[%clk 0:01:12]} 22. Rb4 {[%clk 0:02:24]}  Qe6 {[%clk 0:00:27]} 23. Qxe6 {[%clk 0:02:17]}  fxe6 {[%clk 0:00:27]} 24. Rxe5 {[%clk 0:02:18]}  Rf6 {[%clk 0:00:19]} 25. Rb7 {[%clk 0:02:16]}  a5 {[%clk 0:00:17]} 26. Re3 {[%clk 0:02:15]}  a4 {[%clk 0:00:17]} 27. Ra3 {[%clk 0:02:14]}  e5 {[%clk 0:00:15]} 28. Rb4 {[%clk 0:02:10]}  Raf8 {[%clk 0:00:14]} 29. Rb2 {[%clk 0:02:03]}  Ra8 {[%clk 0:00:12]} 30. Rba2 {[%clk 0:02:01]}  e4 {[%clk 0:00:05]} 31. Rxa4 {[%clk 0:01:59]}  Rxa4 {[%clk 0:00:04]} 32. Rxa4 {[%clk 0:01:59]}  Kf7 {[%clk 0:00:03]} 33. Rxe4 {[%clk 0:01:58]}  Rf5 {[%clk 0:00:02]} 34. Rf4 {[%clk 0:01:57]}  Rxf4 {[%clk 0:00:01]} 35. gxf4 {[%clk 0:01:57]}  Ke6 {[%clk 0:00:02]} 36. Kg2 {[%clk 0:01:58]}  Kd5 {[%clk 0:00:03]} 37. Kf3 {[%clk 0:01:59]}  Kxc5 {[%clk 0:00:03]} 38. f5 {[%clk 0:01:59]}  Kd5 {[%clk 0:00:01]} 39. Kf4 {[%clk 0:02:00]}  c5 {[%clk 0:00:01]} 40. f6 {[%clk 0:01:47]} 1-0


[Site "https://www.chess.com"]

[Event "Titled Tuesday Blitz May 4 2021"]
[White "Aslanov, Umid"]
[Black "Baker, Chris W"]
[WhiteFideId "13412620"]
[BlackFideId "401676"]
[WhiteElo "1796"]
[BlackElo "2226"]
[Result "1-0"]
[Round "09"]
[TimeControl "180+1"]
[Date "2021.05.04"]
[WhiteClock "0:00:33"]
[BlackClock "0:00:03"]

1. e4 {[%clk 0:03:00]}  e5 {[%clk 0:02:59]} 2. Nf3 {[%clk 0:03:00]}  Nc6 {[%clk 0:02:59]} 3. Bc4 {[%clk 0:03:00]}  Bc5 {[%clk 0:02:58]} 4. O-O {[%clk 0:03:01]}  Nf6 {[%clk 0:02:58]} 5. d3 {[%clk 0:03:00]}  d6 {[%clk 0:02:56]} 6. c3 {[%clk 0:03:00]}  a6 {[%clk 0:02:56]} 7. a4 {[%clk 0:03:00]}  Ba7 {[%clk 0:02:55]} 8. h3 {[%clk 0:02:58]}  O-O {[%clk 0:02:53]} 9. Nbd2 {[%clk 0:02:58]}  Be6 {[%clk 0:02:53]} 10. Bxe6 {[%clk 0:02:50]}  fxe6 {[%clk 0:02:52]} 11. Re1 {[%clk 0:02:51]}  Qe8 {[%clk 0:02:45]} 12. Nf1 {[%clk 0:02:50]}  Qg6 {[%clk 0:02:29]} 13. Be3 {[%clk 0:02:37]}  Bxe3 {[%clk 0:02:27]} 14. fxe3 {[%clk 0:02:38]}  Nh5 {[%clk 0:02:07]} 15. N1h2 {[%clk 0:02:35]}  Ng3 {[%clk 0:02:01]} 16. Nh4 {[%clk 0:02:25]}  Qg5 {[%clk 0:01:53]} 17. Qg4 {[%clk 0:02:24]}  Qxg4 {[%clk 0:01:28]} 18. Nxg4 {[%clk 0:02:25]}  g5 {[%clk 0:01:18]} 19. Nf3 {[%clk 0:02:25]}  h5 {[%clk 0:01:16]} 20. Ngh2 {[%clk 0:02:23]}  g4 {[%clk 0:00:55]} 21. hxg4 {[%clk 0:02:24]}  hxg4 {[%clk 0:00:54]} 22. Nxg4 {[%clk 0:02:25]}  Kg7 {[%clk 0:00:48]} 23. Kf2 {[%clk 0:02:21]}  Nh5 {[%clk 0:00:47]} 24. Rh1 {[%clk 0:02:22]}  Rh8 {[%clk 0:00:45]} 25. Rh4 {[%clk 0:02:21]}  Raf8 {[%clk 0:00:33]} 26. Rah1 {[%clk 0:02:18]}  Kg6 {[%clk 0:00:32]} 27. R1h3 {[%clk 0:02:10]}  Nd8 {[%clk 0:00:26]} 28. Ke2 {[%clk 0:02:06]}  Nf7 {[%clk 0:00:22]} 29. d4 {[%clk 0:01:58]}  exd4 {[%clk 0:00:20]} 30. cxd4 {[%clk 0:01:59]}  Ng5 {[%clk 0:00:12]} 31. Nxg5 {[%clk 0:00:41]}  Kxg5 {[%clk 0:00:11]} 32. Kd3 {[%clk 0:00:40]}  Rf1 {[%clk 0:00:07]} 33. Nh2 {[%clk 0:00:35]}  Rd1+ {[%clk 0:00:03]} 34. Kc2 {[%clk 0:00:33]} 1-0


[Site "https://www.chess.com"]

[Event "Titled Tuesday Blitz May 4 2021"]
[White "Bach, Matthias"]
[Black "Guimaraes, Diogo Duarte"]
[WhiteFideId "4603168"]
[BlackFideId "2112450"]
[WhiteElo "2213"]
[BlackElo "2263"]
[Result "1-0"]
[Round "09"]
[TimeControl "180+1"]
[Date "2021.05.04"]
[WhiteClock "0:00:05"]
[BlackClock "0:00:38"]

1. d4 {[%clk 0:03:00]}  d5 {[%clk 0:02:59]} 2. c4 {[%clk 0:03:01]}  c6 {[%clk 0:02:59]} 3. Nc3 {[%clk 0:03:01]}  dxc4 {[%clk 0:02:57]} 4. e4 {[%clk 0:02:58]}  e5 {[%clk 0:02:56]} 5. dxe5 {[%clk 0:02:54]}  Qxd1+ {[%clk 0:02:55]} 6. Nxd1 {[%clk 0:02:54]}  b5 {[%clk 0:02:56]} 7. Bd2 {[%clk 0:02:49]}  Nd7 {[%clk 0:02:56]} 8. f4 {[%clk 0:02:48]}  Nc5 {[%clk 0:02:53]} 9. Nf2 {[%clk 0:02:45]}  f6 {[%clk 0:02:51]} 10. Nf3 {[%clk 0:02:40]}  Bb7 {[%clk 0:02:44]} 11. O-O-O {[%clk 0:02:16]}  O-O-O {[%clk 0:02:43]} 12. Be2 {[%clk 0:02:13]}  Ne7 {[%clk 0:02:30]} 13. Ba5 {[%clk 0:02:06]}  Re8 {[%clk 0:02:24]} 14. e6 {[%clk 0:01:53]}  Nxe6 {[%clk 0:02:19]} 15. Nh4 {[%clk 0:01:23]}  h5 {[%clk 0:02:12]} 16. g3 {[%clk 0:01:14]}  g5 {[%clk 0:02:11]} 17. Nf5 {[%clk 0:01:10]}  Nxf5 {[%clk 0:02:11]} 18. exf5 {[%clk 0:01:10]}  Nc7 {[%clk 0:01:58]} 19. Bf3 {[%clk 0:01:06]}  Bc5 {[%clk 0:01:57]} 20. Ne4 {[%clk 0:01:04]}  Be3+ {[%clk 0:01:57]} 21. Kb1 {[%clk 0:01:03]}  c5 {[%clk 0:01:56]} 22. Nd6+ {[%clk 0:00:59]}  Kb8 {[%clk 0:01:57]} 23. Bxb7 {[%clk 0:00:44]}  Re7 {[%clk 0:01:43]} 24. fxg5 {[%clk 0:00:40]}  Bxg5 {[%clk 0:01:38]} 25. Bc6 {[%clk 0:00:29]}  a6 {[%clk 0:01:35]} 26. Rhe1 {[%clk 0:00:26]}  Rhh7 {[%clk 0:01:34]} 27. Nb7 {[%clk 0:00:22]}  Rxe1 {[%clk 0:01:29]} 28. Rxe1 {[%clk 0:00:23]}  h4 {[%clk 0:01:28]} 29. Nxc5 {[%clk 0:00:19]}  hxg3 {[%clk 0:01:23]} 30. hxg3 {[%clk 0:00:20]}  Ka7 {[%clk 0:01:06]} 31. Nd7 {[%clk 0:00:17]}  Na8 {[%clk 0:01:02]} 32. Re8 {[%clk 0:00:12]}  Rh1+ {[%clk 0:01:01]} 33. Re1 {[%clk 0:00:06]}  Rxe1+ {[%clk 0:01:00]} 34. Bxe1 {[%clk 0:00:05]}  Be3 {[%clk 0:00:53]} 35. Nxf6 {[%clk 0:00:05]}  Kb6 {[%clk 0:00:51]} 36. Be4 {[%clk 0:00:05]}  Nc7 {[%clk 0:00:50]} 37. Nd5+ {[%clk 0:00:05]}  Nxd5 {[%clk 0:00:50]} 38. Bxd5 {[%clk 0:00:06]}  Kc5 {[%clk 0:00:50]} 39. Be4 {[%clk 0:00:06]}  Kd4 {[%clk 0:00:50]} 40. Bc2 {[%clk 0:00:07]}  Ke5 {[%clk 0:00:50]} 41. Bc3+ {[%clk 0:00:06]}  Kd6 {[%clk 0:00:50]} 42. Bb4+ {[%clk 0:00:06]}  Ke5 {[%clk 0:00:50]} 43. a4 {[%clk 0:00:06]}  bxa4 {[%clk 0:00:48]} 44. Ka2 {[%clk 0:00:06]}  Bf2 {[%clk 0:00:44]} 45. g4 {[%clk 0:00:06]}  Bb6 {[%clk 0:00:43]} 46. Bxa4 {[%clk 0:00:05]}  Kf4 {[%clk 0:00:42]} 47. Bd1 {[%clk 0:00:06]}  Kg5 {[%clk 0:00:42]} 48. Bd2+ {[%clk 0:00:05]}  Kf6 {[%clk 0:00:41]} 49. Bc3+ {[%clk 0:00:06]}  Kg5 {[%clk 0:00:41]} 50. f6 {[%clk 0:00:07]}  Kg6 {[%clk 0:00:38]} 51. Be2 {[%clk 0:00:07]}  Bd8 {[%clk 0:00:37]} 52. Bxc4 {[%clk 0:00:06]}  Kg5 {[%clk 0:00:37]} 53. f7 {[%clk 0:00:06]}  Be7 {[%clk 0:00:37]} 54. Kb3 {[%clk 0:00:05]}  Kxg4 {[%clk 0:00:38]} 55. Bb4 {[%clk 0:00:05]} 1-0


[Site "https://www.chess.com"]

[Event "Titled Tuesday Blitz May 4 2021"]
[White "Berezin, Viktor"]
[Black "Komiagina, Maria"]
[WhiteFideId "14107872"]
[BlackFideId "4153987"]
[WhiteElo "2310"]
[BlackElo "2014"]
[Result "1-0"]
[Round "09"]
[TimeControl "180+1"]
[Date "2021.05.04"]
[WhiteClock "0:00:35"]
[BlackClock "0:00:05"]

1. c4 {[%clk 0:03:00]}  Nf6 {[%clk 0:02:59]} 2. Nf3 {[%clk 0:03:00]}  c5 {[%clk 0:02:58]} 3. g3 {[%clk 0:02:59]}  Nc6 {[%clk 0:02:57]} 4. Bg2 {[%clk 0:02:58]}  g6 {[%clk 0:02:57]} 5. O-O {[%clk 0:02:57]}  Bg7 {[%clk 0:02:57]} 6. Nc3 {[%clk 0:02:57]}  O-O {[%clk 0:02:57]} 7. d3 {[%clk 0:02:58]}  d6 {[%clk 0:02:55]} 8. e4 {[%clk 0:02:57]}  Nd7 {[%clk 0:02:46]} 9. Ne1 {[%clk 0:02:56]}  Nd4 {[%clk 0:02:45]} 10. Nc2 {[%clk 0:02:48]}  a6 {[%clk 0:02:42]} 11. Ne3 {[%clk 0:02:41]}  Rb8 {[%clk 0:02:37]} 12. a4 {[%clk 0:02:38]}  b5 {[%clk 0:02:24]} 13. axb5 {[%clk 0:02:34]}  axb5 {[%clk 0:02:24]} 14. f4 {[%clk 0:02:25]}  b4 {[%clk 0:02:18]} 15. Ne2 {[%clk 0:02:20]}  b3 {[%clk 0:02:04]} 16. Nc3 {[%clk 0:02:15]}  e6 {[%clk 0:01:57]} 17. h3 {[%clk 0:02:00]}  f5 {[%clk 0:01:54]} 18. Kh2 {[%clk 0:01:59]}  Bb7 {[%clk 0:01:37]} 19. g4 {[%clk 0:01:49]}  fxg4 {[%clk 0:01:30]} 20. Qxg4 {[%clk 0:01:42]}  Qe7 {[%clk 0:01:25]} 21. Bd2 {[%clk 0:01:38]}  Nf6 {[%clk 0:01:19]} 22. Qh4 {[%clk 0:01:30]}  e5 {[%clk 0:00:58]} 23. f5 {[%clk 0:01:18]}  h5 {[%clk 0:00:26]} 24. Kh1 {[%clk 0:01:15]}  Bh6 {[%clk 0:00:22]} 25. fxg6 {[%clk 0:01:11]}  Kg7 {[%clk 0:00:21]} 26. Rf2 {[%clk 0:00:57]}  Bf4 {[%clk 0:00:20]} 27. Rg1 {[%clk 0:00:54]}  Rbe8 {[%clk 0:00:16]} 28. Nf5+ {[%clk 0:00:50]}  Nxf5 {[%clk 0:00:16]} 29. exf5 {[%clk 0:00:51]}  Bxg2+ {[%clk 0:00:13]} 30. Rfxg2 {[%clk 0:00:50]}  Bxd2 {[%clk 0:00:12]} 31. Rxd2 {[%clk 0:00:51]}  Qb7+ {[%clk 0:00:12]} 32. Rdg2 {[%clk 0:00:48]}  Qf3 {[%clk 0:00:12]} 33. Kh2 {[%clk 0:00:44]}  Ng4+ {[%clk 0:00:11]} 34. hxg4 {[%clk 0:00:39]}  Rh8 {[%clk 0:00:09]} 35. f6+ {[%clk 0:00:39]}  Kxg6 {[%clk 0:00:07]} 36. gxh5+ {[%clk 0:00:38]}  Kf7 {[%clk 0:00:07]} 37. Rg7+ {[%clk 0:00:38]}  Ke6 {[%clk 0:00:07]} 38. Qg4+ {[%clk 0:00:35]}  Qxg4 {[%clk 0:00:05]} 39. R7xg4 {[%clk 0:00:36]}  Rxh5+ {[%clk 0:00:05]} 40. Kg3 {[%clk 0:00:36]}  Kxf6 {[%clk 0:00:05]} 41. Nd5+ {[%clk 0:00:35]} 1-0


[Site "https://www.chess.com"]

[Event "Titled Tuesday Blitz May 4 2021"]
[White "Bologan, Victor"]
[Black "Madaminov, Mukhiddin"]
[WhiteFideId "13900048"]
[BlackFideId "14210703"]
[WhiteElo "2511"]
[BlackElo "1747"]
[Result "1-0"]
[Round "09"]
[TimeControl "180+1"]
[Date "2021.05.04"]
[WhiteClock "0:01:15"]
[BlackClock "0:00:04"]

1. e4 {[%clk 0:03:00]}  e6 {[%clk 0:02:59]} 2. d3 {[%clk 0:02:59]}  d5 {[%clk 0:03:00]} 3. Qe2 {[%clk 0:02:58]}  Nf6 {[%clk 0:02:57]} 4. Nf3 {[%clk 0:02:58]}  Nc6 {[%clk 0:02:42]} 5. g3 {[%clk 0:02:53]}  dxe4 {[%clk 0:02:38]} 6. dxe4 {[%clk 0:02:53]}  e5 {[%clk 0:02:39]} 7. Bg2 {[%clk 0:02:53]}  Bc5 {[%clk 0:02:39]} 8. O-O {[%clk 0:02:53]}  O-O {[%clk 0:02:40]} 9. c3 {[%clk 0:02:46]}  a5 {[%clk 0:02:39]} 10. h3 {[%clk 0:02:46]}  b6 {[%clk 0:02:38]} 11. Rd1 {[%clk 0:02:45]}  Qe7 {[%clk 0:02:35]} 12. Na3 {[%clk 0:02:40]}  Ba6 {[%clk 0:02:34]} 13. Qe1 {[%clk 0:02:37]}  Bxa3 {[%clk 0:02:27]} 14. bxa3 {[%clk 0:02:36]}  a4 {[%clk 0:02:25]} 15. Nh4 {[%clk 0:02:33]}  Rfd8 {[%clk 0:02:21]} 16. Bg5 {[%clk 0:02:24]}  h6 {[%clk 0:02:16]} 17. Nf5 {[%clk 0:02:23]}  Qe6 {[%clk 0:02:16]} 18. Bh4 {[%clk 0:02:22]}  Na5 {[%clk 0:01:59]} 19. Qe3 {[%clk 0:02:11]}  Nc4 {[%clk 0:01:35]} 20. Nxh6+ {[%clk 0:02:10]}  Kh7 {[%clk 0:01:22]} 21. Qg5 {[%clk 0:02:08]}  gxh6 {[%clk 0:01:11]} 22. Qxf6 {[%clk 0:02:07]}  Qxf6 {[%clk 0:01:12]} 23. Bxf6 {[%clk 0:02:07]}  Rd6 {[%clk 0:01:12]} 24. Rxd6 {[%clk 0:02:01]}  cxd6 {[%clk 0:01:13]} 25. Rd1 {[%clk 0:01:55]}  Rc8 {[%clk 0:01:10]} 26. h4 {[%clk 0:01:52]}  Rc6 {[%clk 0:01:07]} 27. h5 {[%clk 0:01:47]}  Nxa3 {[%clk 0:01:03]} 28. Bh3 {[%clk 0:01:46]}  Be2 {[%clk 0:00:59]} 29. Bf5+ {[%clk 0:01:42]}  Kg8 {[%clk 0:00:59]} 30. Rd5 {[%clk 0:01:36]}  Bc4 {[%clk 0:00:52]} 31. Rd2 {[%clk 0:01:32]}  Nb1 {[%clk 0:00:39]} 32. Rb2 {[%clk 0:01:28]}  Nxc3 {[%clk 0:00:31]} 33. Bd7 {[%clk 0:01:27]}  Rc7 {[%clk 0:00:31]} 34. Rxb6 {[%clk 0:01:26]}  Rc8 {[%clk 0:00:04]} 35. Bxc8 {[%clk 0:01:21]}  Nxe4 {[%clk 0:00:04]} 36. Be7 {[%clk 0:01:18]}  d5 {[%clk 0:00:04]} 37. Bf5 {[%clk 0:01:16]}  Kg7 {[%clk 0:00:03]} 38. Bxe4 {[%clk 0:01:15]}  dxe4 {[%clk 0:00:04]} 39. Bf6+ {[%clk 0:01:15]} 1-0


[Site "https://www.chess.com"]

[Event "Titled Tuesday Blitz May 4 2021"]
[White "Bon, Michael"]
[Black "Foerster-Yialamas, Lucas"]
[WhiteFideId "620696"]
[BlackFideId "30901774"]
[WhiteElo "2431"]
[BlackElo "1744"]
[Result "1-0"]
[Round "09"]
[TimeControl "180+1"]
[Date "2021.05.04"]
[WhiteClock "0:00:14"]
[BlackClock "0:00:02"]

1. e4 {[%clk 0:03:00]}  c5 {[%clk 0:02:59]} 2. Nf3 {[%clk 0:02:59]}  d6 {[%clk 0:03:00]} 3. d4 {[%clk 0:03:00]}  cxd4 {[%clk 0:03:01]} 4. Nxd4 {[%clk 0:03:00]}  Nf6 {[%clk 0:03:02]} 5. Nc3 {[%clk 0:03:00]}  a6 {[%clk 0:03:02]} 6. Bg5 {[%clk 0:03:00]}  e6 {[%clk 0:03:02]} 7. f4 {[%clk 0:03:00]}  h6 {[%clk 0:03:03]} 8. Bh4 {[%clk 0:02:23]}  Qb6 {[%clk 0:03:02]} 9. a3 {[%clk 0:02:07]}  Be7 {[%clk 0:03:01]} 10. Bf2 {[%clk 0:02:02]}  Qc7 {[%clk 0:03:00]} 11. Be2 {[%clk 0:01:43]}  b5 {[%clk 0:02:58]} 12. Bf3 {[%clk 0:01:43]}  Bb7 {[%clk 0:02:55]} 13. Qe2 {[%clk 0:01:27]}  Nbd7 {[%clk 0:02:51]} 14. g4 {[%clk 0:01:22]}  g5 {[%clk 0:02:48]} 15. f5 {[%clk 0:01:14]}  e5 {[%clk 0:02:16]} 16. Nb3 {[%clk 0:01:13]}  Nc5 {[%clk 0:02:07]} 17. O-O-O {[%clk 0:00:34]}  O-O-O {[%clk 0:02:00]} 18. Kb1 {[%clk 0:00:34]}  Kb8 {[%clk 0:01:54]} 19. Rc1 {[%clk 0:00:31]}  Rhe8 {[%clk 0:01:43]} 20. Rhd1 {[%clk 0:00:30]}  Na4 {[%clk 0:01:07]} 21. Rd3 {[%clk 0:00:23]}  Nxc3+ {[%clk 0:00:54]} 22. Rxc3 {[%clk 0:00:23]}  Qd7 {[%clk 0:00:47]} 23. Qe3 {[%clk 0:00:22]}  Ba8 {[%clk 0:00:22]} 24. Na5 {[%clk 0:00:21]}  Qc7 {[%clk 0:00:04]} 25. Rxc7 {[%clk 0:00:19]}  Kxc7 {[%clk 0:00:05]} 26. Qa7+ {[%clk 0:00:19]}  Kc8 {[%clk 0:00:02]} 27. Qxa8+ {[%clk 0:00:14]}  Kc7 {[%clk 0:00:02]} 28. Qb7# {[%clk 0:00:14]} 1-0


[Site "https://www.chess.com"]

[Event "Titled Tuesday Blitz May 4 2021"]
[White "Borawski, Jakub"]
[Black "Golsta, Madara"]
[WhiteFideId "1143000"]
[BlackFideId "11607386"]
[WhiteElo "2020"]
[BlackElo "1880"]
[Result "0-1"]
[Round "09"]
[TimeControl "180+1"]
[Date "2021.05.04"]
[WhiteClock "0:01:28"]
[BlackClock "0:00:46"]

1. e4 {[%clk 0:02:53]}  c5 {[%clk 0:02:59]} 2. Nf3 {[%clk 0:02:51]}  d6 {[%clk 0:02:58]} 3. d4 {[%clk 0:02:52]}  cxd4 {[%clk 0:02:59]} 4. Nxd4 {[%clk 0:02:53]}  Nf6 {[%clk 0:02:59]} 5. Nc3 {[%clk 0:02:53]}  g6 {[%clk 0:02:59]} 6. g3 {[%clk 0:02:53]}  Nc6 {[%clk 0:02:56]} 7. Nde2 {[%clk 0:02:53]}  Bg7 {[%clk 0:02:56]} 8. Bg2 {[%clk 0:02:53]}  h5 {[%clk 0:02:56]} 9. h4 {[%clk 0:02:51]}  O-O {[%clk 0:02:52]} 10. O-O {[%clk 0:02:51]}  Bg4 {[%clk 0:02:46]} 11. a4 {[%clk 0:02:50]}  Qc8 {[%clk 0:02:44]} 12. Nd5 {[%clk 0:02:44]}  Bh3 {[%clk 0:02:34]} 13. f3 {[%clk 0:02:29]}  Bxg2 {[%clk 0:02:14]} 14. Kxg2 {[%clk 0:02:29]}  Nxd5 {[%clk 0:02:08]} 15. exd5 {[%clk 0:02:29]}  Nb4 {[%clk 0:02:08]} 16. c3 {[%clk 0:02:24]}  Na6 {[%clk 0:02:07]} 17. Bg5 {[%clk 0:02:24]}  Re8 {[%clk 0:02:05]} 18. Re1 {[%clk 0:02:15]}  Nc5 {[%clk 0:02:01]} 19. Nd4 {[%clk 0:02:07]}  Qc7 {[%clk 0:01:47]} 20. Nb5 {[%clk 0:02:03]}  Qd7 {[%clk 0:01:43]} 21. Qc2 {[%clk 0:02:01]}  Be5 {[%clk 0:01:15]} 22. Re2 {[%clk 0:01:57]}  a6 {[%clk 0:01:00]} 23. Nd4 {[%clk 0:01:57]}  Rac8 {[%clk 0:00:58]} 24. Rd1 {[%clk 0:01:53]}  Qxa4 {[%clk 0:00:54]} 25. Qb1 {[%clk 0:01:50]}  Qc4 {[%clk 0:00:47]} 26. Kh3 {[%clk 0:01:29]}  Bxd4 {[%clk 0:00:46]} 27. Rxd4 {[%clk 0:01:28]}  Qxe2 {[%clk 0:00:46]} 0-1


[Site "https://www.chess.com"]

[Event "Titled Tuesday Blitz May 4 2021"]
[White "Bortnyk, Olexandr"]
[Black "Leitao, Rafael"]
[WhiteFideId "14120828"]
[BlackFideId "2101246"]
[WhiteElo "2723"]
[BlackElo "2609"]
[Result "1-0"]
[Round "09"]
[TimeControl "180+1"]
[Date "2021.05.04"]
[WhiteClock "0:00:09"]
[BlackClock "0:00:25"]

1. e4 {[%clk 0:03:00]}  e5 {[%clk 0:02:53]} 2. Nf3 {[%clk 0:03:00]}  Nc6 {[%clk 0:02:53]} 3. d4 {[%clk 0:03:00]}  exd4 {[%clk 0:02:53]} 4. Bc4 {[%clk 0:03:01]}  Nf6 {[%clk 0:02:52]} 5. O-O {[%clk 0:03:00]}  Nxe4 {[%clk 0:02:43]} 6. Re1 {[%clk 0:03:01]}  d5 {[%clk 0:02:43]} 7. Bxd5 {[%clk 0:03:01]}  Qxd5 {[%clk 0:02:43]} 8. Nc3 {[%clk 0:03:02]}  Qd8 {[%clk 0:02:42]} 9. Nxe4 {[%clk 0:03:00]}  Be7 {[%clk 0:02:38]} 10. Bg5 {[%clk 0:02:22]}  O-O {[%clk 0:02:27]} 11. Bxe7 {[%clk 0:02:19]}  Nxe7 {[%clk 0:02:17]} 12. Nxd4 {[%clk 0:02:17]}  Nf5 {[%clk 0:02:10]} 13. Nf3 {[%clk 0:01:54]}  b6 {[%clk 0:02:03]} 14. g4 {[%clk 0:00:45]}  Nh4 {[%clk 0:01:47]} 15. Nxh4 {[%clk 0:00:16]}  Qxh4 {[%clk 0:01:46]} 16. f3 {[%clk 0:00:16]}  Be6 {[%clk 0:01:40]} 17. Qd2 {[%clk 0:00:15]}  f5 {[%clk 0:01:14]} 18. Qg5 {[%clk 0:00:06]}  Qxg5 {[%clk 0:01:01]} 19. Nxg5 {[%clk 0:00:06]}  Bd5 {[%clk 0:01:00]} 20. Re5 {[%clk 0:00:06]}  Rad8 {[%clk 0:00:57]} 21. gxf5 {[%clk 0:00:06]}  Rd6 {[%clk 0:00:52]} 22. Rf1 {[%clk 0:00:03]}  h6 {[%clk 0:00:48]} 23. Ne4 {[%clk 0:00:04]}  Rdd8 {[%clk 0:00:43]} 24. Rf2 {[%clk 0:00:03]}  Rfe8 {[%clk 0:00:37]} 25. Rxe8+ {[%clk 0:00:03]}  Rxe8 {[%clk 0:00:37]} 26. Re2 {[%clk 0:00:04]}  Kf7 {[%clk 0:00:36]} 27. Kf2 {[%clk 0:00:04]}  Re5 {[%clk 0:00:36]} 28. Ng3 {[%clk 0:00:04]}  Rxe2+ {[%clk 0:00:31]} 29. Kxe2 {[%clk 0:00:05]}  Kf6 {[%clk 0:00:31]} 30. Ke3 {[%clk 0:00:06]}  Kg5 {[%clk 0:00:31]} 31. b3 {[%clk 0:00:05]}  Kh4 {[%clk 0:00:31]} 32. Kf4 {[%clk 0:00:05]}  Kh3 {[%clk 0:00:30]} 33. Nh5 {[%clk 0:00:05]}  Kxh2 {[%clk 0:00:29]} 34. Nxg7 {[%clk 0:00:05]}  Kg2 {[%clk 0:00:29]} 35. f6 {[%clk 0:00:05]}  Bf7 {[%clk 0:00:29]} 36. Kg4 {[%clk 0:00:04]}  Bg6 {[%clk 0:00:26]} 37. f4 {[%clk 0:00:03]}  Kf2 {[%clk 0:00:26]} 38. f5 {[%clk 0:00:04]}  Bf7 {[%clk 0:00:27]} 39. Ne6 {[%clk 0:00:05]}  Ke3 {[%clk 0:00:26]} 40. Nd8 {[%clk 0:00:05]}  h5+ {[%clk 0:00:25]} 41. Kh4 {[%clk 0:00:06]}  Kf4 {[%clk 0:00:23]} 42. Nxf7 {[%clk 0:00:06]}  Kxf5 {[%clk 0:00:24]} 43. Nd8 {[%clk 0:00:06]}  Kxf6 {[%clk 0:00:24]} 44. Nc6 {[%clk 0:00:07]}  Ke6 {[%clk 0:00:24]} 45. Nxa7 {[%clk 0:00:07]}  Kd5 {[%clk 0:00:24]} 46. c4+ {[%clk 0:00:07]}  Kd4 {[%clk 0:00:24]} 47. Nb5+ {[%clk 0:00:07]}  Kd3 {[%clk 0:00:25]} 48. Nxc7 {[%clk 0:00:08]}  Kc2 {[%clk 0:00:25]} 49. Nd5 {[%clk 0:00:08]}  Kb2 {[%clk 0:00:25]} 50. Nxb6 {[%clk 0:00:09]} 1-0


[Site "https://www.chess.com"]

[Event "Titled Tuesday Blitz May 4 2021"]
[White "Brunner, Nicolas"]
[Black "Schut, Lisa"]
[WhiteFideId "620246"]
[BlackFideId "1019481"]
[WhiteElo "2372"]
[BlackElo "2234"]
[Result "1-0"]
[Round "09"]
[TimeControl "180+1"]
[Date "2021.05.04"]
[WhiteClock "0:01:04"]
[BlackClock "0:00:15"]

1. d4 {[%clk 0:03:00]}  Nf6 {[%clk 0:02:57]} 2. c4 {[%clk 0:03:01]}  g6 {[%clk 0:02:57]} 3. Nc3 {[%clk 0:03:00]}  d5 {[%clk 0:02:58]} 4. Bg5 {[%clk 0:03:00]}  Ne4 {[%clk 0:02:52]} 5. Bh4 {[%clk 0:02:52]}  Nxc3 {[%clk 0:02:50]} 6. bxc3 {[%clk 0:02:52]}  Bg7 {[%clk 0:02:50]} 7. e3 {[%clk 0:02:47]}  c5 {[%clk 0:02:32]} 8. cxd5 {[%clk 0:02:46]}  cxd4 {[%clk 0:02:31]} 9. cxd4 {[%clk 0:02:43]}  Qxd5 {[%clk 0:02:30]} 10. Nf3 {[%clk 0:02:40]}  Nc6 {[%clk 0:02:29]} 11. Be2 {[%clk 0:02:34]}  Qa5+ {[%clk 0:02:28]} 12. Qd2 {[%clk 0:02:33]}  Qxd2+ {[%clk 0:02:28]} 13. Kxd2 {[%clk 0:02:27]}  O-O {[%clk 0:02:11]} 14. Rab1 {[%clk 0:02:12]}  a6 {[%clk 0:01:52]} 15. Rhc1 {[%clk 0:02:07]}  Rd8 {[%clk 0:01:46]} 16. Ke1 {[%clk 0:02:02]}  Kf8 {[%clk 0:01:46]} 17. Rb6 {[%clk 0:01:53]}  Ra7 {[%clk 0:00:56]} 18. Ng5 {[%clk 0:01:46]}  h6 {[%clk 0:00:44]} 19. Ne4 {[%clk 0:01:45]}  Be6 {[%clk 0:00:44]} 20. Nc5 {[%clk 0:01:33]}  Bd5 {[%clk 0:00:35]} 21. Nxb7 {[%clk 0:01:29]}  Rc8 {[%clk 0:00:18]} 22. Na5 {[%clk 0:01:22]}  Rac7 {[%clk 0:00:15]} 23. Nxc6 {[%clk 0:01:11]}  Rxc6 {[%clk 0:00:15]} 24. Rcxc6 {[%clk 0:01:07]}  Rxc6 {[%clk 0:00:16]} 25. Rb8+ {[%clk 0:01:04]}  Rc8 {[%clk 0:00:15]} 26. Rxc8# {[%clk 0:01:04]} 1-0


[Site "https://www.chess.com"]